{"text_format":"1","workbook":"xlsx","n_sheets":1,"sheets":["Tabelle4"],"not_rendered":{"charts":0,"images":3,"macros":1,"external_links":0,"defined_names":1,"comments":0,"pivot_tables":0},"unopened":[],"bounds":{"document_bytes":16777216,"sheet_cells":100000,"rows_first":2000,"rows_last":500,"rows_between":2000,"halvings":0,"cell_chars":16384,"cell_head_chars":4096},"cells_cut":0,"cells_raw":0,"read":"whole","date_system":"1900"}

{"sheet":"Tabelle4","index":0,"n_rows":96,"n_cols":14,"rows_kept":96,"cut":false,"hidden":false,"merged":[[9,2,36,2],[75,2,96,2],[40,2,71,2],[71,4,71,10],[36,4,36,10]]}
[]
[]
[]
[]
[]
[]
[]
[null,null,"Bitte wählen Sie zwischen Standfläche und Full-Service-Stand (Standfläche mit Standbau)."]
[]
[null,null,"nur STANDFLÄCHE "]
[null,null,null,null,"Standfläche: Bitte wählen Sie Ihre Standgröße (m²)"]
[]
[]
[]
[null,null,null,null,"Reihenstand (1 offene Seite)",null,null,null,176,"€ / m²",null,{"$f":"IF(N15=1,I15*L11,0)","v":0},null,4]
[]
[null,null,null,null,"Eckstand (2 offene Seiten)",null,null,null,199,"€ / m²",null,{"$f":"IF(N15=2,I17*L11,0)","v":0},null,11]
[]
[null,null,null,null,"Kopfstand (3 offene Seiten)",null,null,null,219,"€ / m²",null,{"$f":"IF(N15=3,I19*L11,0)","v":0}]
[]
[null,null,null,null,"Blockstand (4 offene Seiten)",null,null,null,235,"€ / m²",null,{"$f":"IF(N15=4,235*L11,0)","v":0}]
[]
[]
[]
[null,null,null,null,"Anmeldegebühr",null,null,null,480,"€ / Aussteller",null,{"$f":"IF(SUM(L15:L21)>0,480,0 )","v":0}]
[]
[null,null,null,null,"AUMA-Gebühr",null,null,null,0.6,"€ / m²",null,{"$f":"IF(SUM(L15:L21)>0,L11*0.6,0)","v":0}]
[]
[null,null,null,null,"Mediengrundeintrag",null,null,null,690,"€ / Aussteller",null,{"$f":"IF(SUM(L15:L21)>0,690,0)","v":0}]
[]
[null,null,null,null,"Mitaussteller-Gebühr",null,0,null,305,"€ / Mitaussteller",null,{"$f":"IF(SUM(L15:L21)>0,G31*(I31+I25+I29),0)","v":0},"*)"]
[null,null,null,null,"*) beinhaltet Mitaussteller-Gebühr, Anmeldegebühr und Mediengrundeintrag"]
[]
[]
[]
[null,null,null,null,"GESAMTPREIS (nur Standfläche)",null,null,null,null,null,null,{"$f":"SUM(L15+L17+L19+L21+L25+L27+L29+L31)","v":0}]
[null,null,null,null,"Mit Bereitstellung der Standbestätigung/Standrechnung wird eine Nebenkostenpauschale (Strom, Wasser, Tickets) in Höhe von\n25 EUR/m2 erhoben, die ebenfalls binnen 21 Tagen zur Zahung fällig wird. Die Verrechnung erfolgt nach der Veranstaltung."]
[]
[]
[]
[null,null,"FULL-SERVICE-STAND"]
[null,null,null,null,"Full-Service-Stand: Bitte wählen Sie Ihre Standgröße (m²)"]
[]
[]
[]
[null,null,null,null,"Full-Service-Stand „Comfort“, Reihenstand",null,null,null,285,"€ / m²",null,{"$f":"IF(N15=5,285*L42,0)","v":0}]
[]
[null,null,null,null,"Full-Service-Stand „Comfort“, Eckstand",null,null,null,305,"€ / m²",null,{"$f":"IF(N15=6,305*L42,0)","v":0}]
[]
[null,null,null,null,"Full-Service-Stand „Superior“, Reihenstand",null,null,null,324,"€ / m²",null,{"$f":"IF(N15=7,324*L42,0)","v":0}]
[]
[null,null,null,null,"Full-Service-Stand „Superior“, Eckstand",null,null,null,339,"€ / m²",null,{"$f":"IF(N15=8,339*L42,0)","v":0}]
[]
[null,null,null,null,"Full-Service-Stand „Exclusive“, Reihenstand",null,null,null,364,"€ / m²",null,{"$f":"IF(N15=9,364*L42,0)","v":0}]
[]
[null,null,null,null,"Full-Service-Stand „Exclusive“, Eckstand",null,null,null,385,"€ / m²",null,{"$f":"IF(N15=10,385*L42,0)","v":0}]
[]
[]
[]
[null,null,null,null,"Anmeldegebühr",null,null,null,480,"€ / Aussteller",null,{"$f":"IF(SUM(L46:L56)>0,480,0)","v":0}]
[]
[null,null,null,null,"Basisgebühr Full-Service-Stand",null,null,null,350,"€ / Aussteller",null,{"$f":"IF(SUM(L46:L56)>0,350,0)","v":0}]
[]
[null,null,null,null,"Mediengrundeintrag",null,null,null,690,"€ / Aussteller",null,{"$f":"IF(SUM(L46:L57)>0,690,0)","v":0}]
[]
[null,null,null,null,"Mitaussteller-Gebühr",null,0,null,305,"€ / Mitaussteller",null,{"$f":"IF(SUM(L46:L56)>0,G66*(I66+I60+I64),0)","v":0},"*)"]
[null,null,null,null,"*) beinhaltet Mitaussteller-Gebühr, Anmeldegebühr und Mediengrundeintrag"]
[]
[]
[]
[null,null,null,null,"GESAMTPREIS (Full-Service-Stand)",null,null,null,null,null,null,{"$f":"SUM(L46+L48+L50+L52+L54+L56+L60+L62+L64)+L66","v":0}]
[]
[]
[]
[]
[null,null,"FULL-SERVICE-STAND \"CAMPUS & CAREER\""]
[null,null,null,null,"Full-Service-Stand \"Campus & Career\": Bitte wählen Sie Ihre Standgröße (m²)"]
[]
[]
[]
[null,null,null,null,"Hochschulen / Wissenschaft",null,null,null,196,"€ / m²",null,{"$f":"IF(N15=11,196*L77,0)","v":0}]
[]
[]
[]
[]
[null,null,null,null,"Unternehmen aus der Industrie",null,null,null,307,"€ / m²",null,{"$f":"IF(N15=12,307*L77,0)","v":0}]
[]
[]
[null,null,null,null,"Anmeldegebühr",null,null,null,480,"€ / Aussteller",null,{"$f":"IF(L86>0,480,0)","v":0}]
[]
[null,null,null,null,"Basisgebühr Full-Service-Stand",null,null,null,350,"€ / Aussteller",null,{"$f":"IF(L86>0,350,0)","v":0}]
[]
[null,null,null,null,"Mediengrundeintrag",null,null,null,690,"€ / Aussteller",null,{"$f":"IF(L86>0,690,0)","v":0}]
[]
[]
[null,null,null,null,"TOTAL (Full-Service-Stand \"Campus & Career\")",null,null,null,null,null,null,{"$f":"IF(N17=11,L81+L86+L89+L91+L93)","v":0}]